[Event "Titled Tuesday Blitz January 17 Early 2023"]
[White "Harshavardhan G B"]
[Black "Fiorito, Francisco"]
[WhiteFideId "25059009"]
[BlackFideId "180165"]
[WhiteElo "2408"]
[BlackElo "2305"]
[Result "1-0"]
[Round "06"]
[TimeControl "180+2"]
[Date "2023.01.17"]
[WhiteClock "0:00:22"]
[BlackClock "0:00:14"]

1. Nf3 {[%clk 0:02:50]}  d5 {[%clk 0:02:58]} 2. g3 {[%clk 0:02:48]}  Nf6 {[%clk 0:02:58]} 3. Bg2 {[%clk 0:02:47]}  Bf5 {[%clk 0:02:59]} 4. O-O {[%clk 0:02:45]}  e6 {[%clk 0:02:59]} 5. c4 {[%clk 0:02:44]}  Be7 {[%clk 0:02:58]} 6. d4 {[%clk 0:02:41]}  O-O {[%clk 0:02:57]} 7. Nc3 {[%clk 0:02:40]}  c6 {[%clk 0:02:55]} 8. b3 {[%clk 0:02:39]}  h6 {[%clk 0:02:55]} 9. Bb2 {[%clk 0:02:28]}  Nbd7 {[%clk 0:02:52]} 10. Nd2 {[%clk 0:02:27]}  Re8 {[%clk 0:02:43]} 11. e4 {[%clk 0:02:25]}  dxe4 {[%clk 0:02:43]} 12. Ndxe4 {[%clk 0:02:25]}  Nxe4 {[%clk 0:02:44]} 13. Nxe4 {[%clk 0:02:26]}  Nf6 {[%clk 0:02:44]} 14. Nc3 {[%clk 0:02:24]}  Qd7 {[%clk 0:02:42]} 15. Qd2 {[%clk 0:02:16]}  Rad8 {[%clk 0:02:39]} 16. Rfd1 {[%clk 0:02:12]}  e5 {[%clk 0:02:38]} 17. d5 {[%clk 0:02:05]}  Bb4 {[%clk 0:02:13]} 18. Qe3 {[%clk 0:01:48]}  Bxc3 {[%clk 0:02:03]} 19. Bxc3 {[%clk 0:01:49]}  cxd5 {[%clk 0:02:03]} 20. Bxd5 {[%clk 0:01:45]}  Qc7 {[%clk 0:01:25]} 21. Bg2 {[%clk 0:01:41]}  b6 {[%clk 0:01:17]} 22. h3 {[%clk 0:01:32]}  Rxd1+ {[%clk 0:01:10]} 23. Rxd1 {[%clk 0:01:30]}  Nd7 {[%clk 0:01:01]} 24. Qf3 {[%clk 0:01:25]}  Bg6 {[%clk 0:00:59]} 25. Qc6 {[%clk 0:01:24]}  Rc8 {[%clk 0:00:55]} 26. Qxd7 {[%clk 0:01:22]}  Qc5 {[%clk 0:00:53]} 27. Rd5 {[%clk 0:01:16]}  Qc7 {[%clk 0:00:45]} 28. Qxc7 {[%clk 0:01:14]}  Rxc7 {[%clk 0:00:46]} 29. Rd8+ {[%clk 0:01:14]}  Kh7 {[%clk 0:00:46]} 30. Bxe5 {[%clk 0:01:15]}  Re7 {[%clk 0:00:45]} 31. f4 {[%clk 0:01:05]}  f6 {[%clk 0:00:45]} 32. Bb8 {[%clk 0:01:02]}  Re1+ {[%clk 0:00:43]} 33. Kf2 {[%clk 0:01:00]}  Ra1 {[%clk 0:00:43]} 34. g4 {[%clk 0:01:00]}  Rxa2+ {[%clk 0:00:43]} 35. Kg3 {[%clk 0:01:01]}  Bc2 {[%clk 0:00:42]} 36. Bd5 {[%clk 0:00:59]}  h5 {[%clk 0:00:33]} 37. Bg8+ {[%clk 0:00:56]}  Kh6 {[%clk 0:00:34]} 38. f5 {[%clk 0:00:50]}  Ra3 {[%clk 0:00:26]} 39. Kh4 {[%clk 0:00:36]}  hxg4 {[%clk 0:00:22]} 40. hxg4 {[%clk 0:00:33]}  Bxb3 {[%clk 0:00:18]} 41. Rd3 {[%clk 0:00:30]}  a6 {[%clk 0:00:14]} 42. Bf7 {[%clk 0:00:25]}  a5 {[%clk 0:00:13]} 43. Bf4+ {[%clk 0:00:24]}  g5+ {[%clk 0:00:13]} 44. fxg6+ {[%clk 0:00:24]}  Kg7 {[%clk 0:00:14]} 45. Kh5 {[%clk 0:00:22]}  a4 {[%clk 0:00:13]} 46. Bh6+ {[%clk 0:00:22]}  Kh8 {[%clk 0:00:14]} 47. Rd8# {[%clk 0:00:22]} 1-0


[Site "https://www.chess.com"]

[Event "Titled Tuesday Blitz January 17 Early 2023"]
[White "Mahdavi, Reza"]
[Black "Schekachikhin, Maksim"]
[WhiteFideId "12595926"]
[BlackFideId "24177830"]
[WhiteElo "2339"]
[BlackElo "2371"]
[Result "1-0"]
[Round "06"]
[TimeControl "180+2"]
[Date "2023.01.17"]
[WhiteClock "0:02:38"]
[BlackClock "0:00:03"]

1. e4 {[%clk 0:02:44]}  c5 {[%clk 0:00:19]} 2. Nf3 {[%clk 0:02:43]}  a6 {[%clk 0:00:12]} 3. c3 {[%clk 0:02:43]}  d5 {[%clk 0:00:12]} 4. exd5 {[%clk 0:02:43]}  Qxd5 {[%clk 0:00:13]} 5. d4 {[%clk 0:02:44]}  e6 {[%clk 0:00:13]} 6. Be3 {[%clk 0:02:44]}  cxd4 {[%clk 0:00:12]} 7. cxd4 {[%clk 0:02:45]}  Nf6 {[%clk 0:00:12]} 8. Nc3 {[%clk 0:02:46]}  Bb4 {[%clk 0:00:12]} 9. Bd3 {[%clk 0:02:45]}  O-O {[%clk 0:00:12]} 10. O-O {[%clk 0:02:46]}  Qd6 {[%clk 0:00:12]} 11. Bg5 {[%clk 0:02:44]}  Nbd7 {[%clk 0:00:11]} 12. Qe2 {[%clk 0:02:44]}  Bxc3 {[%clk 0:00:11]} 13. bxc3 {[%clk 0:02:45]}  b6 {[%clk 0:00:11]} 14. Ne5 {[%clk 0:02:44]}  Bb7 {[%clk 0:00:11]} 15. Rfe1 {[%clk 0:02:44]}  h6 {[%clk 0:00:11]} 16. Bh4 {[%clk 0:02:44]}  Qc7 {[%clk 0:00:10]} 17. Bg3 {[%clk 0:02:44]}  Qxc3 {[%clk 0:00:09]} 18. Rac1 {[%clk 0:02:43]}  Qa3 {[%clk 0:00:09]} 19. Rc7 {[%clk 0:02:42]}  Bc8 {[%clk 0:00:05]} 20. Nc6 {[%clk 0:02:41]}  Nd5 {[%clk 0:00:03]} 21. Qf3 {[%clk 0:02:37]}  Nxc7 {[%clk 0:00:03]} 22. Bh7+ {[%clk 0:02:37]}  Kxh7 {[%clk 0:00:03]} 23. Qxa3 {[%clk 0:02:38]} 1-0


[Site "https://www.chess.com"]

[Event "Titled Tuesday Blitz January 17 Early 2023"]
[White "Krivonosov, Oleg"]
[Black "Renjith, Sravan"]
[WhiteFideId "11600349"]
[BlackFideId "4306783"]
[WhiteElo "2359"]
[BlackElo "2172"]
[Result "0-1"]
[Round "06"]
[TimeControl "180+2"]
[Date "2023.01.17"]
[WhiteClock "0:00:53"]
[BlackClock "0:00:12"]

1. Nf3 {[%clk 0:03:00]}  Nf6 {[%clk 0:02:59]} 2. c4 {[%clk 0:02:59]}  g6 {[%clk 0:02:57]} 3. Nc3 {[%clk 0:02:59]}  Bg7 {[%clk 0:02:55]} 4. e4 {[%clk 0:02:59]}  O-O {[%clk 0:02:55]} 5. d4 {[%clk 0:02:59]}  d6 {[%clk 0:02:55]} 6. Be2 {[%clk 0:02:59]}  e5 {[%clk 0:02:55]} 7. dxe5 {[%clk 0:03:00]}  dxe5 {[%clk 0:02:55]} 8. Qxd8 {[%clk 0:03:00]}  Rxd8 {[%clk 0:02:54]} 9. Bg5 {[%clk 0:03:00]}  c6 {[%clk 0:02:08]} 10. Nxe5 {[%clk 0:02:58]}  Re8 {[%clk 0:02:07]} 11. O-O-O {[%clk 0:02:58]}  Nxe4 {[%clk 0:01:56]} 12. Nxe4 {[%clk 0:02:56]}  Bxe5 {[%clk 0:01:56]} 13. Nd6 {[%clk 0:02:55]}  Bxd6 {[%clk 0:01:24]} 14. Rxd6 {[%clk 0:02:56]}  Bf5 {[%clk 0:01:20]} 15. Bf3 {[%clk 0:02:53]}  Nd7 {[%clk 0:01:17]} 16. Rhd1 {[%clk 0:02:48]}  Ne5 {[%clk 0:01:17]} 17. Be2 {[%clk 0:02:45]}  Nd7 {[%clk 0:01:07]} 18. Be3 {[%clk 0:02:41]}  Nf8 {[%clk 0:00:58]} 19. b3 {[%clk 0:02:36]}  h5 {[%clk 0:00:50]} 20. h3 {[%clk 0:02:33]}  a5 {[%clk 0:00:48]} 21. Kb2 {[%clk 0:02:29]}  a4 {[%clk 0:00:47]} 22. g4 {[%clk 0:02:28]}  hxg4 {[%clk 0:00:45]} 23. hxg4 {[%clk 0:02:29]}  Be4 {[%clk 0:00:43]} 24. Rh1 {[%clk 0:02:18]}  Bxh1 {[%clk 0:00:41]} 25. Kc3 {[%clk 0:02:08]}  Rad8 {[%clk 0:00:27]} 26. c5 {[%clk 0:02:07]}  Rxd6 {[%clk 0:00:26]} 27. cxd6 {[%clk 0:02:08]}  axb3 {[%clk 0:00:26]} 28. axb3 {[%clk 0:02:07]}  Bd5 {[%clk 0:00:25]} 29. b4 {[%clk 0:01:59]}  Nd7 {[%clk 0:00:24]} 30. b5 {[%clk 0:01:56]}  Nf6 {[%clk 0:00:20]} 31. Kb4 {[%clk 0:01:50]}  Ne4 {[%clk 0:00:19]} 32. d7 {[%clk 0:01:35]}  Rd8 {[%clk 0:00:18]} 33. f3 {[%clk 0:01:36]}  Nd6 {[%clk 0:00:16]} 34. Kc5 {[%clk 0:01:25]}  Rxd7 {[%clk 0:00:14]} 35. b6 {[%clk 0:01:23]}  Re7 {[%clk 0:00:12]} 36. Kd4 {[%clk 0:01:12]}  Nc4 {[%clk 0:00:12]} 37. Bxc4 {[%clk 0:01:10]}  Bxc4 {[%clk 0:00:12]} 38. Bf4 {[%clk 0:01:10]}  Bd5 {[%clk 0:00:11]} 39. Kc5 {[%clk 0:01:04]}  Bxf3 {[%clk 0:00:11]} 40. Kd6 {[%clk 0:01:03]}  Re6+ {[%clk 0:00:11]} 41. Kc7 {[%clk 0:01:03]}  c5 {[%clk 0:00:11]} 42. g5 {[%clk 0:01:02]}  c4 {[%clk 0:00:12]} 43. Kb8 {[%clk 0:00:58]}  c3 {[%clk 0:00:13]} 44. Ka7 {[%clk 0:00:58]}  c2 {[%clk 0:00:14]} 45. Kb8 {[%clk 0:00:58]}  Rxb6 {[%clk 0:00:14]} 46. Bc1 {[%clk 0:00:56]}  Re6 {[%clk 0:00:14]} 47. Kc7 {[%clk 0:00:54]}  b5 {[%clk 0:00:14]} 48. Kd7 {[%clk 0:00:53]}  b4 {[%clk 0:00:15]} 49. Bb2 {[%clk 0:00:53]}  b3 {[%clk 0:00:15]} 50. Kc7 {[%clk 0:00:52]}  Re1 {[%clk 0:00:14]} 51. Kd7 {[%clk 0:00:52]}  Rb1 {[%clk 0:00:13]} 52. Bf6 {[%clk 0:00:53]}  b2 {[%clk 0:00:13]} 53. Bxb2 {[%clk 0:00:53]}  Rxb2 {[%clk 0:00:13]} 54. Kd6 {[%clk 0:00:53]}  c1=Q {[%clk 0:00:13]} 55. Ke5 {[%clk 0:00:54]}  Re2+ {[%clk 0:00:13]} 56. Kd4 {[%clk 0:00:54]}  Re4+ {[%clk 0:00:12]} 57. Kd5 {[%clk 0:00:53]}  Qc4+ {[%clk 0:00:13]} 58. Kd6 {[%clk 0:00:53]}  Re6+ {[%clk 0:00:13]} 59. Kd7 {[%clk 0:00:53]}  Qc6+ {[%clk 0:00:14]} 60. Kd8 {[%clk 0:00:53]}  Re8# {[%clk 0:00:12]} 0-1


[Site "https://www.chess.com"]

[Event "Titled Tuesday Blitz January 17 Early 2023"]
[White "Turzo, Attila"]
[Black "Rohith Krishna S"]
[WhiteFideId "704954"]
[BlackFideId "46617051"]
[WhiteElo "2279"]
[BlackElo "2385"]
[Result "0-1"]
[Round "06"]
[TimeControl "180+2"]
[Date "2023.01.17"]
[WhiteClock "0:00:06"]
[BlackClock "0:00:10"]

1. d4 {[%clk 0:03:00]}  Nf6 {[%clk 0:02:52]} 2. Bf4 {[%clk 0:03:01]}  d6 {[%clk 0:02:49]} 3. Nc3 {[%clk 0:03:00]}  g6 {[%clk 0:02:41]} 4. e4 {[%clk 0:02:56]}  Bg7 {[%clk 0:02:42]} 5. Qd2 {[%clk 0:02:57]}  O-O {[%clk 0:02:40]} 6. O-O-O {[%clk 0:02:53]}  c6 {[%clk 0:02:37]} 7. Bh6 {[%clk 0:02:50]}  Re8 {[%clk 0:02:36]} 8. Bxg7 {[%clk 0:02:49]}  Kxg7 {[%clk 0:02:36]} 9. h4 {[%clk 0:02:35]}  h5 {[%clk 0:02:34]} 10. f3 {[%clk 0:02:26]}  a5 {[%clk 0:02:30]} 11. e5 {[%clk 0:02:12]}  dxe5 {[%clk 0:02:10]} 12. dxe5 {[%clk 0:02:13]}  Qxd2+ {[%clk 0:02:11]} 13. Rxd2 {[%clk 0:02:14]}  Nh7 {[%clk 0:02:11]} 14. f4 {[%clk 0:02:04]}  a4 {[%clk 0:02:07]} 15. a3 {[%clk 0:02:01]}  Nf8 {[%clk 0:02:05]} 16. Nf3 {[%clk 0:02:00]}  Nbd7 {[%clk 0:02:03]} 17. Ne4 {[%clk 0:01:51]}  Ne6 {[%clk 0:02:02]} 18. g3 {[%clk 0:01:50]}  Ndc5 {[%clk 0:02:02]} 19. Nc3 {[%clk 0:01:38]}  Nc7 {[%clk 0:01:53]} 20. Bg2 {[%clk 0:01:34]}  Bg4 {[%clk 0:01:47]} 21. Nh2 {[%clk 0:01:30]}  Bf5 {[%clk 0:01:44]} 22. Rhd1 {[%clk 0:01:30]}  f6 {[%clk 0:01:38]} 23. Re1 {[%clk 0:01:22]}  Kf7 {[%clk 0:01:31]} 24. Nf1 {[%clk 0:01:12]}  Rad8 {[%clk 0:01:27]} 25. Ne3 {[%clk 0:01:05]}  Rxd2 {[%clk 0:01:23]} 26. Kxd2 {[%clk 0:01:06]}  Be6 {[%clk 0:01:23]} 27. exf6 {[%clk 0:00:58]}  exf6 {[%clk 0:01:22]} 28. Ne4 {[%clk 0:00:46]}  Rd8+ {[%clk 0:01:08]} 29. Kc1 {[%clk 0:00:45]}  Nxe4 {[%clk 0:00:55]} 30. Bxe4 {[%clk 0:00:46]}  f5 {[%clk 0:00:55]} 31. Bf3 {[%clk 0:00:44]}  Na6 {[%clk 0:00:49]} 32. Rd1 {[%clk 0:00:43]}  Re8 {[%clk 0:00:49]} 33. Kd2 {[%clk 0:00:40]}  Nc5 {[%clk 0:00:49]} 34. Ke2 {[%clk 0:00:41]}  Ke7 {[%clk 0:00:37]} 35. Rd4 {[%clk 0:00:36]}  Ra8 {[%clk 0:00:35]} 36. Nc4 {[%clk 0:00:34]}  Bxc4+ {[%clk 0:00:33]} 37. Rxc4 {[%clk 0:00:34]}  Kd6 {[%clk 0:00:34]} 38. Rd4+ {[%clk 0:00:34]}  Kc7 {[%clk 0:00:35]} 39. Kd2 {[%clk 0:00:28]}  Re8 {[%clk 0:00:35]} 40. Bg2 {[%clk 0:00:21]}  b5 {[%clk 0:00:28]} 41. Bf3 {[%clk 0:00:21]}  Nb7 {[%clk 0:00:21]} 42. Rd3 {[%clk 0:00:20]}  Nd6 {[%clk 0:00:21]} 43. b3 {[%clk 0:00:18]}  axb3 {[%clk 0:00:20]} 44. cxb3 {[%clk 0:00:18]}  Ra8 {[%clk 0:00:20]} 45. Rc3 {[%clk 0:00:19]}  Ra6 {[%clk 0:00:20]} 46. Kc2 {[%clk 0:00:15]}  Kd7 {[%clk 0:00:17]} 47. Kb2 {[%clk 0:00:15]}  Nc8 {[%clk 0:00:14]} 48. Rd3+ {[%clk 0:00:15]}  Ke6 {[%clk 0:00:15]} 49. Rd8 {[%clk 0:00:15]}  Ne7 {[%clk 0:00:14]} 50. Re8 {[%clk 0:00:14]}  Kd7 {[%clk 0:00:11]} 51. Rb8 {[%clk 0:00:13]}  Ra7 {[%clk 0:00:11]} 52. b4 {[%clk 0:00:12]}  Kd6 {[%clk 0:00:11]} 53. Rd8+ {[%clk 0:00:11]}  Kc7 {[%clk 0:00:10]} 54. Rd1 {[%clk 0:00:11]}  Ra8 {[%clk 0:00:11]} 55. Re1 {[%clk 0:00:11]}  Kd6 {[%clk 0:00:11]} 56. Rd1+ {[%clk 0:00:10]}  Ke6 {[%clk 0:00:11]} 57. Re1+ {[%clk 0:00:11]}  Kf6 {[%clk 0:00:12]} 58. Rd1 {[%clk 0:00:11]}  Rc8 {[%clk 0:00:12]} 59. Rd6+ {[%clk 0:00:11]}  Kf7 {[%clk 0:00:12]} 60. Kc3 {[%clk 0:00:11]}  c5 {[%clk 0:00:12]} 61. bxc5 {[%clk 0:00:10]}  Rxc5+ {[%clk 0:00:13]} 62. Kb3 {[%clk 0:00:11]}  Rc1 {[%clk 0:00:13]} 63. Bd5+ {[%clk 0:00:09]}  Kg7 {[%clk 0:00:12]} 64. Rd7 {[%clk 0:00:08]}  Re1 {[%clk 0:00:11]} 65. Kb4 {[%clk 0:00:07]}  Kf6 {[%clk 0:00:10]} 66. Rd6+ {[%clk 0:00:06]}  Kg7 {[%clk 0:00:09]} 67. Re6 {[%clk 0:00:06]}  Nxd5+ {[%clk 0:00:09]} 68. Kxb5 {[%clk 0:00:06]}  Rxe6 {[%clk 0:00:10]} 69. Kc5 {[%clk 0:00:06]}  Re3 {[%clk 0:00:10]} 0-1


[Site "https://www.chess.com"]

[Event "Titled Tuesday Blitz January 17 Early 2023"]
[White "Averjanov, Alexey"]
[Black "Cella, Glaucio Dalla Cortt"]
[WhiteFideId "14109867"]
[BlackFideId "2119455"]
[WhiteElo "2399"]
[BlackElo "1894"]
[Result "0-1"]
[Round "06"]
[TimeControl "180+2"]
[Date "2023.01.17"]
[WhiteClock "0:01:13"]
[BlackClock "0:00:14"]

1. d4 {[%clk 0:03:00]}  Nf6 {[%clk 0:02:00]} 2. c4 {[%clk 0:03:01]}  e5 {[%clk 0:02:01]} 3. dxe5 {[%clk 0:03:00]}  Ng4 {[%clk 0:02:01]} 4. Nf3 {[%clk 0:03:00]}  Bc5 {[%clk 0:02:00]} 5. e3 {[%clk 0:03:00]}  Nc6 {[%clk 0:01:59]} 6. b3 {[%clk 0:03:00]}  O-O {[%clk 0:01:51]} 7. Bb2 {[%clk 0:02:59]}  Re8 {[%clk 0:01:51]} 8. Be2 {[%clk 0:02:57]}  Ncxe5 {[%clk 0:01:49]} 9. Nxe5 {[%clk 0:02:58]}  Nxe5 {[%clk 0:01:49]} 10. Nc3 {[%clk 0:02:58]}  a5 {[%clk 0:01:49]} 11. O-O {[%clk 0:02:57]}  Ra6 {[%clk 0:01:46]} 12. Nd5 {[%clk 0:02:57]}  Rh6 {[%clk 0:01:31]} 13. Nf4 {[%clk 0:02:57]}  b6 {[%clk 0:00:53]} 14. Bd4 {[%clk 0:02:52]}  Qh4 {[%clk 0:00:48]} 15. h3 {[%clk 0:02:51]}  Bxd4 {[%clk 0:00:40]} 16. Qxd4 {[%clk 0:02:52]}  Bb7 {[%clk 0:00:40]} 17. Kh2 {[%clk 0:02:25]}  g5 {[%clk 0:00:35]} 18. g3 {[%clk 0:02:21]}  Ng4+ {[%clk 0:00:19]} 19. Kg1 {[%clk 0:02:08]}  Qxh3 {[%clk 0:00:20]} 20. Nxh3 {[%clk 0:02:07]}  Rxh3 {[%clk 0:00:19]} 21. f3 {[%clk 0:02:00]}  Rxg3+ {[%clk 0:00:12]} 22. Kh1 {[%clk 0:02:00]}  Re6 {[%clk 0:00:13]} 23. Rf2 {[%clk 0:01:13]}  Rh6+ {[%clk 0:00:13]} 24. Rh2 {[%clk 0:01:13]}  Rxh2# {[%clk 0:00:14]} 0-1


[Site "https://www.chess.com"]

[Event "Titled Tuesday Blitz January 17 Early 2023"]
[White "Martin Carmona, Gaston Manuel"]
[Black "Hambleton, Aman"]
[WhiteFideId "22284567"]
[BlackFideId "2606577"]
[WhiteElo "2333"]
[BlackElo "2420"]
[Result "0-1"]
[Round "06"]
[TimeControl "180+2"]
[Date "2023.01.17"]
[WhiteClock "0:00:14"]
[BlackClock "0:00:07"]

1. e4 {[%clk 0:02:53]}  b6 {[%clk 0:02:42]} 2. d4 {[%clk 0:02:47]}  Bb7 {[%clk 0:02:42]} 3. Bd3 {[%clk 0:02:48]}  e6 {[%clk 0:02:41]} 4. Qe2 {[%clk 0:02:47]}  d5 {[%clk 0:02:41]} 5. e5 {[%clk 0:02:46]}  c5 {[%clk 0:02:40]} 6. c3 {[%clk 0:02:47]}  Qc8 {[%clk 0:02:41]} 7. Nf3 {[%clk 0:02:44]}  Ba6 {[%clk 0:02:40]} 8. O-O {[%clk 0:02:45]}  Bxd3 {[%clk 0:02:40]} 9. Qxd3 {[%clk 0:02:45]}  Qa6 {[%clk 0:02:41]} 10. Qd1 {[%clk 0:02:42]}  Ne7 {[%clk 0:02:40]} 11. Ng5 {[%clk 0:02:36]}  h6 {[%clk 0:02:39]} 12. Qh5 {[%clk 0:02:35]}  g6 {[%clk 0:02:38]} 13. Qh3 {[%clk 0:02:35]}  Nbc6 {[%clk 0:02:23]} 14. Be3 {[%clk 0:02:24]}  Nf5 {[%clk 0:02:16]} 15. Nd2 {[%clk 0:01:58]}  cxd4 {[%clk 0:01:54]} 16. cxd4 {[%clk 0:01:59]}  Nfxd4 {[%clk 0:01:46]} 17. Bxd4 {[%clk 0:01:44]}  Nxd4 {[%clk 0:01:45]} 18. Nb3 {[%clk 0:01:07]}  Ne2+ {[%clk 0:00:53]} 19. Kh1 {[%clk 0:01:06]}  Nf4 {[%clk 0:00:54]} 20. Qh4 {[%clk 0:01:06]}  Be7 {[%clk 0:00:50]} 21. Qxf4 {[%clk 0:00:58]}  Bxg5 {[%clk 0:00:44]} 22. Qg4 {[%clk 0:00:57]}  Be7 {[%clk 0:00:29]} 23. Nd4 {[%clk 0:00:57]}  h5 {[%clk 0:00:25]} 24. Qh3 {[%clk 0:00:57]}  Qc8 {[%clk 0:00:16]} 25. Rac1 {[%clk 0:00:56]}  Qd7 {[%clk 0:00:17]} 26. f4 {[%clk 0:00:48]}  Rc8 {[%clk 0:00:13]} 27. g4 {[%clk 0:00:46]}  Rxc1 {[%clk 0:00:10]} 28. Rxc1 {[%clk 0:00:47]}  Bc5 {[%clk 0:00:11]} 29. Nb3 {[%clk 0:00:41]}  Qa4 {[%clk 0:00:11]} 30. Qg2 {[%clk 0:00:17]}  Qxf4 {[%clk 0:00:07]} 31. Rf1 {[%clk 0:00:14]}  Qxg4 {[%clk 0:00:07]} 32. Qe2 {[%clk 0:00:14]}  Qxe2 {[%clk 0:00:07]} 0-1


[Site "https://www.chess.com"]

[Event "Titled Tuesday Blitz January 17 Early 2023"]
[White "Vivas Zamora, Fabian Ernesto"]
[Black "Tan, Zhongyi"]
[WhiteFideId "3902480"]
[BlackFideId "8603642"]
[WhiteElo "2346"]
[BlackElo "2517"]
[Result "0-1"]
[Round "06"]
[TimeControl "180+2"]
[Date "2023.01.17"]
[WhiteClock "0:00:03"]
[BlackClock "0:00:10"]

1. e4 {[%clk 0:02:56]}  c5 {[%clk 0:02:57]} 2. Nc3 {[%clk 0:02:55]}  d6 {[%clk 0:02:56]} 3. d4 {[%clk 0:02:55]}  cxd4 {[%clk 0:02:56]} 4. Qxd4 {[%clk 0:02:55]}  Nc6 {[%clk 0:02:56]} 5. Qd2 {[%clk 0:02:55]}  Nf6 {[%clk 0:02:52]} 6. b3 {[%clk 0:02:54]}  e6 {[%clk 0:02:52]} 7. Bb2 {[%clk 0:02:54]}  d5 {[%clk 0:02:52]} 8. exd5 {[%clk 0:02:53]}  exd5 {[%clk 0:02:53]} 9. O-O-O {[%clk 0:02:53]}  Be6 {[%clk 0:02:52]} 10. Kb1 {[%clk 0:02:49]}  Qa5 {[%clk 0:02:51]} 11. Nb5 {[%clk 0:02:48]}  Qxd2 {[%clk 0:02:50]} 12. Rxd2 {[%clk 0:02:49]}  O-O-O {[%clk 0:02:48]} 13. Bd3 {[%clk 0:02:24]}  Ne4 {[%clk 0:02:34]} 14. Bxe4 {[%clk 0:02:03]}  dxe4 {[%clk 0:02:35]} 15. Rxd8+ {[%clk 0:02:03]}  Kxd8 {[%clk 0:02:35]} 16. Ne2 {[%clk 0:02:00]}  Bc5 {[%clk 0:02:25]} 17. Bxg7 {[%clk 0:01:52]}  Rg8 {[%clk 0:02:24]} 18. Bf6+ {[%clk 0:01:51]}  Kc8 {[%clk 0:02:24]} 19. Ng3 {[%clk 0:01:45]}  Bxf2 {[%clk 0:01:38]} 20. Nd6+ {[%clk 0:01:43]}  Kc7 {[%clk 0:01:38]} 21. Ndxe4 {[%clk 0:01:44]}  Bb6 {[%clk 0:01:37]} 22. Bg5 {[%clk 0:01:32]}  Bd4 {[%clk 0:01:28]} 23. Bf4+ {[%clk 0:01:30]}  Kb6 {[%clk 0:01:27]} 24. c3 {[%clk 0:01:24]}  Be5 {[%clk 0:01:15]} 25. Rf1 {[%clk 0:01:21]}  f5 {[%clk 0:00:59]} 26. Bxe5 {[%clk 0:01:19]}  fxe4 {[%clk 0:00:56]} 27. Bf4 {[%clk 0:01:04]}  Ne7 {[%clk 0:00:54]} 28. c4 {[%clk 0:00:51]}  Kc6 {[%clk 0:00:48]} 29. Re1 {[%clk 0:00:49]}  Bf7 {[%clk 0:00:33]} 30. Kb2 {[%clk 0:00:37]}  Bg6 {[%clk 0:00:30]} 31. Nxe4 {[%clk 0:00:18]}  Bxe4 {[%clk 0:00:31]} 32. Rxe4 {[%clk 0:00:18]}  Rxg2+ {[%clk 0:00:31]} 33. Kc3 {[%clk 0:00:18]}  Ng6 {[%clk 0:00:27]} 34. Re6+ {[%clk 0:00:03]}  Kd7 {[%clk 0:00:25]} 35. Rd6+ {[%clk 0:00:04]}  Ke7 {[%clk 0:00:25]} 36. Rd4 {[%clk 0:00:01]}  Nxf4 {[%clk 0:00:19]} 37. Rxf4 {[%clk 0:00:01]}  Rxh2 {[%clk 0:00:20]} 38. Rd4 {[%clk 0:00:01]}  Ke6 {[%clk 0:00:18]} 39. a4 {[%clk 0:00:01]}  h5 {[%clk 0:00:18]} 40. Kb4 {[%clk 0:00:01]}  h4 {[%clk 0:00:17]} 41. a5 {[%clk 0:00:01]}  h3 {[%clk 0:00:17]} 42. Rh4 {[%clk 0:00:02]}  Rh1 {[%clk 0:00:17]} 43. Rh7 {[%clk 0:00:02]}  h2 {[%clk 0:00:15]} 44. Kc5 {[%clk 0:00:03]}  Ke5 {[%clk 0:00:13]} 45. b4 {[%clk 0:00:03]}  a6 {[%clk 0:00:13]} 46. b5 {[%clk 0:00:03]}  axb5 {[%clk 0:00:13]} 47. cxb5 {[%clk 0:00:02]}  Rc1+ {[%clk 0:00:13]} 48. Kb6 {[%clk 0:00:02]}  h1=Q {[%clk 0:00:13]} 49. Rxh1 {[%clk 0:00:03]}  Rxh1 {[%clk 0:00:13]} 50. Kxb7 {[%clk 0:00:04]}  Kd6 {[%clk 0:00:14]} 51. b6 {[%clk 0:00:04]}  Rh7+ {[%clk 0:00:12]} 52. Ka8 {[%clk 0:00:04]}  Kc6 {[%clk 0:00:12]} 53. Kb8 {[%clk 0:00:03]}  Rh5 {[%clk 0:00:10]} 54. a6 {[%clk 0:00:02]}  Kxb6 {[%clk 0:00:10]} 55. a7 {[%clk 0:00:03]}  Rh8# {[%clk 0:00:10]} 0-1


[Site "https://www.chess.com"]

[Event "Titled Tuesday Blitz January 17 Early 2023"]
[White "Tristan, Leonardo"]
[Black "Parpiev, Isaak"]
[WhiteFideId "113816"]
[BlackFideId "34281576"]
[WhiteElo "2545"]
[BlackElo "2167"]
[Result "1-0"]
[Round "06"]
[TimeControl "180+2"]
[Date "2023.01.17"]
[WhiteClock "0:00:41"]
[BlackClock "0:00:09"]

1. d4 {[%clk 0:03:00]}  Nf6 {[%clk 0:02:59]} 2. Nf3 {[%clk 0:03:01]}  g6 {[%clk 0:02:57]} 3. Bf4 {[%clk 0:03:01]}  Bg7 {[%clk 0:02:57]} 4. e3 {[%clk 0:03:02]}  O-O {[%clk 0:02:58]} 5. Be2 {[%clk 0:03:01]}  d6 {[%clk 0:02:59]} 6. O-O {[%clk 0:03:02]}  Nbd7 {[%clk 0:02:59]} 7. h3 {[%clk 0:03:02]}  Qe8 {[%clk 0:02:59]} 8. Bh2 {[%clk 0:03:02]}  e5 {[%clk 0:02:59]} 9. c4 {[%clk 0:03:03]}  b6 {[%clk 0:02:56]} 10. Nc3 {[%clk 0:03:00]}  Bb7 {[%clk 0:02:56]} 11. b4 {[%clk 0:03:00]}  a5 {[%clk 0:02:51]} 12. Nb5 {[%clk 0:02:53]}  Rc8 {[%clk 0:02:34]} 13. bxa5 {[%clk 0:02:43]}  bxa5 {[%clk 0:02:35]} 14. Qa4 {[%clk 0:02:42]}  exd4 {[%clk 0:02:30]} 15. Nfxd4 {[%clk 0:02:36]}  Ne4 {[%clk 0:01:49]} 16. Qxa5 {[%clk 0:02:34]}  Be5 {[%clk 0:01:40]} 17. Bxe5 {[%clk 0:02:10]}  Qxe5 {[%clk 0:01:36]} 18. Nf3 {[%clk 0:01:54]}  Qc5 {[%clk 0:01:30]} 19. Qa7 {[%clk 0:01:53]}  Qxa7 {[%clk 0:00:58]} 20. Nxa7 {[%clk 0:01:54]}  Ra8 {[%clk 0:00:59]} 21. Nb5 {[%clk 0:01:54]}  Rfc8 {[%clk 0:00:57]} 22. a4 {[%clk 0:01:50]}  Ra5 {[%clk 0:00:55]} 23. Nfd4 {[%clk 0:01:47]}  Ndc5 {[%clk 0:00:54]} 24. Bf3 {[%clk 0:01:38]}  Nd2 {[%clk 0:00:29]} 25. Bxb7 {[%clk 0:01:37]}  Nxb7 {[%clk 0:00:30]} 26. Nc6 {[%clk 0:01:28]}  Nxf1 {[%clk 0:00:24]} 27. Kxf1 {[%clk 0:01:25]}  Kf8 {[%clk 0:00:17]} 28. Nxa5 {[%clk 0:01:17]}  Nxa5 {[%clk 0:00:17]} 29. Rc1 {[%clk 0:01:13]}  Ke7 {[%clk 0:00:17]} 30. c5 {[%clk 0:01:12]}  d5 {[%clk 0:00:16]} 31. c6 {[%clk 0:00:59]}  Nc4 {[%clk 0:00:15]} 32. Ke2 {[%clk 0:00:57]}  Ra8 {[%clk 0:00:13]} 33. Nxc7 {[%clk 0:00:56]}  Rxa4 {[%clk 0:00:13]} 34. Nxd5+ {[%clk 0:00:56]}  Kd6 {[%clk 0:00:14]} 35. c7 {[%clk 0:00:53]}  Ra2+ {[%clk 0:00:14]} 36. Ke1 {[%clk 0:00:48]}  Ne5 {[%clk 0:00:07]} 37. c8=Q {[%clk 0:00:47]}  Nd3+ {[%clk 0:00:07]} 38. Kf1 {[%clk 0:00:46]}  Nxc1 {[%clk 0:00:07]} 39. Qxc1 {[%clk 0:00:43]}  Kxd5 {[%clk 0:00:08]} 40. Qc7 {[%clk 0:00:41]}  Ra1+ {[%clk 0:00:08]} 41. Ke2 {[%clk 0:00:41]}  Ra2+ {[%clk 0:00:08]} 42. Kf3 {[%clk 0:00:42]}  Ke6 {[%clk 0:00:09]} 43. Qc4+ {[%clk 0:00:41]} 1-0


[Site "https://www.chess.com"]